[Event "FISU WUMSCC Men 2024"]
[Site "Entebbe"]
[Date "2024.06.25"]
[Round "1.8"]
[White "Alshnaiber, Yazeed"]
[Black "Szustakowski, Antoni"]
[Result "1-0"]
[ECO "B42"]
[WhiteElo "1831"]
[BlackElo "2362"]
[Annotator "RC"]
[PlyCount "91"]
[EventDate "2024.06.24"]
[EventType "swiss"]
[EventCountry "UGA"]
[SourceTitle "playchess.com"]
[Source "ChessBase"]
[SourceQuality "1"]
[TimeControl "5400+30"]

1. e4 {[%emt 0:00:27]} c5 {[%emt 0:00:12]} 2. Nf3 {[%emt 0:00:56]} e6 {[%emt 0:00:05]} 3. d4 {[%emt 0:01:36]} cxd4 {[%emt 0:00:04]} 4. Nxd4 {[%emt 0:00:11]} a6 {[%emt 0:00:05]} 5. Bd3 {[%emt 0:03:35]} Bc5 {[%emt 0:03:37]} 6. Nb3 {[%emt 0:00:48]} Ba7 {[%emt 0:00:03]} 7. Qe2 {[%emt 0:00:07]} d6 {[%emt 0:02:59]} 8. Be3 {[%emt 0:02:10]} Nc6 {[%emt 0:00:27]} 9. Bxa7 {[%emt 0:06:48]} Rxa7 {[%emt 0:00:21]} 10. O-O {[%emt 0:00:43]} Nge7 {[%emt 0:01:07]} 11. Nc3 {[%emt 0:09:37]} O-O {[%emt 0:02:45]} 12. f4 {[%emt 0:09:19]} f5 {[%emt 0:29:11]} 13. Rae1 {[%emt 0:22:44]} b5 14. a3 {[%emt 0:15:05]} Rc7 {[%emt 0:21:49]} 15. Kh1 {[%emt 0:04:07]} Kh8 {[%emt 0:08:57]} 16. Rf3 {[%emt 0:04:51]} d5 {[%emt 0:07:19]} 17. exd5 {[%emt 0:11:52]} exd5 {[%emt 0:00:05]} 18. Qf2 {[%emt 0:00:50]} d4 {[%emt 0:00:05]} 19. Ne2 {[%emt 0:00:23]} Rd7 {[%emt 0:00:04]} 20. Rh3 {[%emt 0:01:17]} Ng6 {[%emt 0:04:54]} 21. Ng3 {[%emt 0:00:47]} Rd6 {[%emt 0:02:46]} 22. Rh5 {[%emt 0:01:20]} Nge7 {[%emt 0:03:18]} 23. Nd2 {[%emt 0:00:34]} g6 {[%emt 0:00:59]} 24. Rh3 {[%emt 0:00:10]} Nd5 {[%emt 0:00:04]} 25. Ne2 {[%emt 0:01:01]} Ne3 {[%emt 0:02:16]} 26. Nf3 {[%emt 0:00:23]} Ng4 {[%emt 0:00:06]} 27. Qg1 {[%emt 0:00:05]} Kg7 {[%emt 0:01:35]} 28. Rg3 {[%emt 0:00:29]} Re8 {[%emt 0:01:50]} 29. h3 {[%emt 0:00:16]} Nf6 {[%emt 0:00:05]} 30. a4 {[%emt 0:02:21]} b4 {[%emt 0:01:29]} 31. Nd2 {[%emt 0:00:33]} Rde6 {[%emt 0:02:17]} 32. Bc4 {[%emt 0:00:21]} R6e7 {[%emt 0:01:12]} 33. b3 {[%emt 0:00:34]} Bb7 {[%emt 0:02:19]} 34. Qf2 {[%emt 0:00:01]} Na5 {[%emt 0:01:43]} 35. Bd3 {[%emt 0:00:25]} Be4 {[%emt 0:01:13]} 36. Bxe4 {[%emt 0:01:03]} Nxe4 {[%emt 0:00:05]} 37. Nxe4 {[%emt 0:00:14]} Rxe4 {[%emt 0:00:03]} 38. Rd3 {[%emt 0:00:18]} Qe7 {[%emt 0:00:52]} 39. Rxd4 {[%emt 0:01:07]} Rxe2 {[%emt 0:00:34]} 40. Rxe2 {[%emt 0:00:03]} Qxe2 {[%emt 0:00:05]} 41. Rd7+ {[%emt 0:00:04]} Kh6 {[%emt 0:01:21]} 42. Qh4+ {[%emt 0:00:53]} Qh5 {[%emt 0:00:01]} 43. Qf6 {[%emt 0:00:13]} Re1+ {[%emt 0:01:04]} 44. Kh2 {[%emt 0:00:08]} Qe2 {[%emt 0:00:25]} 45. Qg7+ {[%emt 0:00:06]} Kh5 {[%emt 0:00:02]} 46. Qxh7# {[%emt 0:02:35]} 1-0

[Event "FISU WUMSCC Men 2024"]
[Site "Entebbe"]
[Date "2024.06.25"]
[Round "1.9"]
[White "Thilakarathne, G M H"]
[Black "Alotaibi, Mohammed Dhaidan N"]
[Result "1-0"]
[ECO "B50"]
[WhiteElo "2356"]
[BlackElo "1817"]
[Annotator "RC"]
[PlyCount "63"]
[EventDate "2024.06.24"]
[EventType "swiss"]
[EventCountry "UGA"]
[SourceTitle "playchess.com"]
[Source "ChessBase"]
[SourceQuality "1"]
[TimeControl "5400+30"]

1. e4 {[%emt 0:00:03]} c5 {[%emt 0:00:17]} 2. Nf3 {[%emt 0:00:08]} d6 {[%emt 0:00:20]} 3. Bc4 {[%emt 0:01:21]} e6 {[%emt 0:01:31]} 4. O-O {[%emt 0:02:12]} Nf6 {[%emt 0:00:44]} 5. Re1 {[%emt 0:00:21]} Be7 {[%emt 0:02:05]} 6. c3 {[%emt 0:00:14]} O-O {[%emt 0:02:53]} 7. Bb3 {[%emt 0:03:02]} Nc6 {[%emt 0:18:13]} 8. d4 {[%emt 0:01:18]} cxd4 {[%emt 0:05:45]} 9. cxd4 {[%emt 0:00:11]} d5 {[%emt 0:00:07]} 10. e5 {[%emt 0:01:12]} Ne4 {[%emt 0:00:12]} 11. Nbd2 {[%emt 0:07:51]} f5 {[%emt 0:12:36]} 12. exf6 {[%emt 0:03:24]} Nxf6 {[%emt 0:00:08]} 13. Nf1 {[%emt 0:09:24]} Bd6 {[%emt 0:03:42]} 14. Ng3 {[%emt 0:01:39]} Bd7 {[%emt 0:09:02]} 15. Bd2 {[%emt 0:10:19]} Rc8 {[%emt 0:10:33]} 16. Bc3 Rc7 {[%emt 0:11:25]} 17. Ne5 {[%emt 0:12:22]} Be8 {[%emt 0:08:00]} 18. Bc2 {[%emt 0:06:47]} Re7 {[%emt 0:07:43]} 19. f4 {[%emt 0:03:38]} h5 {[%emt 0:03:43]} 20. Qd2 {[%emt 0:05:00]} h4 {[%emt 0:00:34]} 21. Nh1 {[%emt 0:00:18]} Bh5 {[%emt 0:00:42]} 22. Nf2 {[%emt 0:00:21]} Nd7 {[%emt 0:00:43]} 23. Nh3 {[%emt 0:00:21]} Ndxe5 {[%emt 0:00:30]} 24. fxe5 {[%emt 0:00:10]} Bc7 {[%emt 0:00:01]} 25. Qg5 {[%emt 0:01:08]} g6 {[%emt 0:00:29]} 26. Bxg6 {[%emt 0:01:19]} Bxg6 {[%emt 0:00:05]} 27. Qxg6+ {[%emt 0:00:05]} Rg7 {[%emt 0:00:01]} 28. Qxe6+ {[%emt 0:00:09]} Kh7 {[%emt 0:00:07]} 29. Rf1 {[%emt 0:01:12]} Rfg8 {[%emt 0:00:07]} 30. Nf4 {[%emt 0:11:40]} Qg5 {[%emt 0:02:40]} 31. Qxd5 {[%emt 0:00:40]} h3 {[%emt 0:00:29]} 32. Rf3 {[%emt 0:01:32]} 1-0

[Event "FISU WUMSCC Men 2024"]
[Site "Entebbe"]
[Date "2024.06.25"]
[Round "1.10"]
[White "Kabuye Charity Raphael"]
[Black "Horak, Martin"]
[Result "0-1"]
[ECO "E05"]
[WhiteElo "1761"]
[BlackElo "2333"]
[Annotator "RC"]
[PlyCount "94"]
[EventDate "2024.06.24"]
[EventType "swiss"]
[EventCountry "UGA"]
[SourceTitle "playchess.com"]
[Source "ChessBase"]
[SourceQuality "1"]
[TimeControl "5400+30"]

1. Nf3 {[%emt 0:00:32]} Nf6 {[%emt 0:00:46]} 2. d4 {[%emt 0:00:23]} d5 {[%emt 0:00:14]} 3. c4 {[%emt 0:01:00]} e6 {[%emt 0:00:10]} 4. g3 {[%emt 0:00:23]} Be7 {[%emt 0:02:42]} 5. Bg2 {[%emt 0:01:43]} O-O {[%emt 0:00:06]} 6. O-O {[%emt 0:00:25]} dxc4 {[%emt 0:00:03]} 7. Qc2 {[%emt 0:01:52]} b5 {[%emt 0:00:17]} 8. a4 {[%emt 0:03:00]} b4 {[%emt 0:00:06]} 9. Qxc4 {[%emt 0:00:35]} Bb7 {[%emt 0:03:30]} 10. h4 {[%emt 0:04:10]} Bd5 {[%emt 0:03:07]} 11. Qd3 {[%emt 0:02:30]} c5 {[%emt 0:02:13]} 12. dxc5 {[%emt 0:00:40]} Nbd7 {[%emt 0:00:38]} 13. Be3 {[%emt 0:04:52]} Nxc5 {[%emt 0:03:49]} 14. Bxc5 {[%emt 0:00:14]} Bxc5 {[%emt 0:00:06]} 15. Nbd2 {[%emt 0:02:06]} Rc8 {[%emt 0:02:57]} 16. e3 {[%emt 0:17:08]} Qe7 {[%emt 0:05:14]} 17. Rfc1 {[%emt 0:03:57]} Rfd8 {[%emt 0:02:42]} 18. Qe2 {[%emt 0:00:27]} Rc7 {[%emt 0:23:33]} 19. Ne5 Rdc8 {[%emt 0:05:30]} 20. Ndf3 {[%emt 0:20:06]} Bd6 {[%emt 0:01:47]} 21. Rxc7 {[%emt 0:11:33]} Qxc7 {[%emt 0:00:31]} 22. Nd3 {[%emt 0:01:08]} Qc2 {[%emt 0:11:22]} 23. Qxc2 {[%emt 0:01:38]} Rxc2 {[%emt 0:00:04]} 24. Nfe1 {[%emt 0:04:27]} Rc4 {[%emt 0:11:20]} 25. Rc1 {[%emt 0:00:31]} b3 {[%emt 0:01:20]} 26. Rxc4 {[%emt 0:02:13]} Bxc4 {[%emt 0:00:04]} 27. Bc6 {[%emt 0:01:08]} Nd5 {[%emt 0:01:10]} 28. Bb5 {[%emt 0:02:31]} Nb6 {[%emt 0:01:35]} 29. Bxc4 {[%emt 0:10:10]} Nxc4 {[%emt 0:00:06]} 30. Nf3 {[%emt 0:00:35]} e5 {[%emt 0:00:30]} 31. Nc1 {[%emt 0:02:39]} Nxb2 {[%emt 0:01:34]} 32. Nxb3 {[%emt 0:00:03]} Nxa4 {[%emt 0:00:09]} 33. Kf1 {[%emt 0:00:06]} Nc3 {[%emt 0:04:14]} 34. Nfd2 {[%emt 0:00:39]} e4 {[%emt 0:03:44]} 35. Nc4 {[%emt 0:00:37]} Bb4 {[%emt 0:00:51]} 36. Kg2 {[%emt 0:01:08]} f5 {[%emt 0:01:42]} 37. f3 {[%emt 0:00:20]} a6 {[%emt 0:01:54]} 38. g4 {[%emt 0:00:13]} fxg4 {[%emt 0:00:27]} 39. fxg4 {[%emt 0:00:05]} Kf7 {[%emt 0:00:27]} 40. Kg3 {[%emt 0:00:18]} Ke6 {[%emt 0:00:20]} 41. Kf4 {[%emt 0:01:59]} Kd5 {[%emt 0:00:43]} 42. Ncd2 {[%emt 0:00:47]} a5 {[%emt 0:00:22]} 43. Nf1 {[%emt 0:00:35]} a4 {[%emt 0:00:44]} 44. Na1 {[%emt 0:00:03]} Kc4 {[%emt 0:01:37]} 45. Nd2+ {[%emt 0:00:07]} Kd3 {[%emt 0:00:07]} 46. Nf1 {[%emt 0:00:25]} Ba3 {[%emt 0:00:43]} 47. Ng3 {[%emt 0:01:03]} Bd6+ {[%emt 0:00:06]} 0-1